fUST/lending_fUST_20250817
["ID","MTS","AMOUNT","RATE_DAILY","PERIOD"]
[379764759,1755402644718,-151.0,0.00020799,2]
[379764761,1755402644727,-218.23328,0.00020799,2]
[379764763,1755402644736,-151.983137,0.00020799,2]
[379764764,1755402644745,-151.983137,0.00020799,2]
[379764766,1755402644754,-1394.51,0.00020838,2]
[379764768,1755402644764,-480.0,0.00020838,2]
[379764771,1755402644774,-480.0,0.00020838,2]
[379764773,1755402644783,-757.64,0.00020838,2]
[379764775,1755402644793,-583.64,0.00020838,2]
[379764777,1755402644802,-764.0,0.00020838,2]
[379764779,1755402644812,-480.0,0.00020838,2]
[379764781,1755402644822,-480.0,0.00020838,2]
[379764783,1755402644831,-810.97,0.00020838,2]
[379764785,1755402644841,-480.0,0.00020838,2]
[379764787,1755402644850,-480.0,0.00020838,2]
[379764789,1755402644859,-151.0,0.00020839,2]
[379764791,1755402644869,-151.0,0.00020839,2]
[379764793,1755402644878,-487.74,0.00020839,2]
[379764795,1755402644889,-480.0,0.00020839,2]
[379764797,1755402644898,-480.0,0.00020839,2]
[379764799,1755402644908,-2025.64,0.00020839,2]
[379764801,1755402644917,-480.0,0.00020839,2]
[379764803,1755402644927,-480.0,0.00020839,2]
[379764805,1755402644936,-480.0,0.00020839,2]
[379764807,1755402644945,-480.0,0.00020839,2]
[379764809,1755402644955,-480.0,0.00020839,2]
[379764811,1755402644964,-186.636562,0.00020847,2]
[379764813,1755402644973,-279.42,0.00020868,2]
[379764815,1755402644983,-426.4,0.00020894,3]
[379764817,1755402644992,-220.92189991,0.00020901,2]
[379764819,1755402645001,-271.22557041,0.00020901,2]
[379764821,1755402645011,-319.1,0.00020901,2]
[379764823,1755402645020,-480.0,0.00020901,2]
[379764825,1755402645029,-582.86,0.00020901,2]
[379764827,1755402645039,-480.0,0.00020901,2]
[379764829,1755402645048,-782.52,0.00020901,2]
[379764831,1755402645057,-480.0,0.00020901,2]
[379764832,1755402645067,-480.0,0.00020901,2]
[379764834,1755402645076,-480.0,0.00020901,2]
[379764836,1755402645085,-1336.74,0.00020901,2]
[379764839,1755402645095,-480.0,0.00020901,2]
[379764841,1755402645105,-480.0,0.00020901,2]
[379764843,1755402645114,-500.0,0.00020901,2]
[379764845,1755402645124,-151.0,0.00020902,2]
[379764847,1755402645133,-151.0,0.00020902,2]
[379764849,1755402645143,-151.0,0.00020902,2]
[379764851,1755402645153,-480.0,0.00020902,2]
[379764853,1755402645162,-718.52,0.00020902,2]
[379764855,1755402645172,-3832.03,0.00020902,2]
[379764857,1755402645182,-480.0,0.00020902,2]
[379764859,1755402645191,-480.0,0.00020902,2]
[379764861,1755402645200,-480.0,0.00020902,2]
[379764863,1755402645210,-549.71,0.00020902,2]
[379764865,1755402645220,-153.022001,0.00020903,2]
[379764867,1755402645229,-151.0,0.00020903,2]
[379764869,1755402645238,-151.0,0.00020903,2]
[379764871,1755402645247,-151.0,0.00020903,2]
[379764873,1755402645259,-480.0,0.00020903,2]
[379764875,1755402645271,-151.0,0.00020903,2]
[379764877,1755402645281,-151.0,0.00020903,2]
[379764879,1755402645290,-151.0,0.00020903,2]
[379764881,1755402645300,-151.0,0.00020903,2]
[379764883,1755402645309,-151.0,0.00020903,2]
[379764885,1755402645318,-480.0,0.00020903,2]
[379764887,1755402645327,-480.0,0.00020903,2]
[379764889,1755402645337,-151.0,0.00020903,2]
[379764891,1755402645347,-151.0,0.00020903,2]
[379764893,1755402645361,-151.0,0.00020903,2]
[379764895,1755402645370,-622.11351496,0.00020903,2]
[379764897,1755402645379,-480.0,0.00020903,2]
[379764899,1755402645390,-480.0,0.00020903,2]
[379764901,1755402645399,-492.59,0.00020903,2]
[379764903,1755402645409,-480.0,0.00020903,2]
[379764905,1755402645418,-480.0,0.00020903,2]
[379764907,1755402645429,-480.0,0.00020903,2]
[379764909,1755402645439,-605.62367943,0.00020903,2]
[379764911,1755402645449,-480.0,0.00020903,2]
[379764913,1755402645458,-560.76,0.00020903,2]
[379764915,1755402645467,-480.0,0.00020903,2]
[379764917,1755402645476,-1811.52,0.00020903,2]
[379764919,1755402645486,-480.0,0.00020903,2]
[379764921,1755402645495,-480.0,0.00020903,2]
[379764923,1755402645505,-4322.46,0.00020903,2]
[379764925,1755402645515,-430.76162258,0.00020904,2]
[379764927,1755402645524,-489.38,0.00020904,2]
[379764929,1755402645533,-177.95537248,0.00020904,2]
[379764931,1755402645542,-480.0,0.00020904,2]
[379764933,1755402645552,-480.0,0.00020904,2]
[379764935,1755402645561,-480.0,0.00020904,2]
[379764937,1755402645570,-480.0,0.00020904,2]
[379764939,1755402645579,-204.3,0.00020904,2]
[379764941,1755402645588,-650.03,0.00020904,2]
[379764943,1755402645597,-262.95,0.00020904,2]
[379764945,1755402645606,-794.77,0.00020904,2]
[379764947,1755402645615,-360.06175392,0.00020905,2]
[379764949,1755402645626,-480.0,0.00020905,2]
[379764951,1755402645635,-484.78674096,0.00020905,2]
[379764953,1755402645645,-420.0,0.00020919,2]
[379764955,1755402645654,-186.636562,0.00020929,20]
[379764957,1755402645663,-156.37978624,0.00020932,2]
[379764959,1755402645673,-156.37978624,0.00020932,2]
[379764961,1755402645682,-75844.61214581,0.00020932,2]
[379764990,1755402645956,-482.85844728,0.00020355,2]
[379764992,1755402645966,-484.58519494,0.00020357,2]
[379764994,1755402645976,-480.0,0.00020627,2]
[379764996,1755402645985,-480.0,0.00020627,2]
[379764998,1755402645995,-480.0,0.00020901,2]
[379765000,1755402646005,-480.0,0.00020901,2]
[379765002,1755402646014,-6333.47023312,0.00020932,2]
[379765005,1755402646026,-326.63930089,0.00020932,2]
[379765008,1755402646045,-704.535,0.00020932,2]
[379765015,1755402646108,-480.0,0.00020355,2]
[379765017,1755402646118,-486.05315648,0.00020629,2]
[379765019,1755402646128,-8539.91702554,0.00020932,2]
[379766815,1755402768197,500.0,0.00018834,2]
[379766832,1755402951457,270.25,0.00019,2]
[379766853,1755403304388,191.474991,0.00019863,2]
[379766863,1755403524397,165.554016,0.00013699,2]
[379766867,1755403561127,284.15,0.00019886,2]
[379766869,1755403644722,280.54,0.00019879,2]
[379766870,1755403725594,276.96,0.00019889,2]
[379766872,1755403766426,1000.0,0.00019,2]
[379766874,1755403784495,1000.0,0.0002,2]
[379766875,1755403808155,273.44,0.00019889,2]
[379766877,1755403817457,1000.0,0.0002,2]
[379767432,1755403838460,-525.62621275,0.00020187,2]
[379767433,1755403838567,-418.40067789,0.00020187,2]
[379767434,1755403838577,-1152.0,0.00020252,2]
[379767435,1755403838586,-300.0,0.00020253,2]
[379767436,1755403838595,-300.0,0.00020253,2]
[379767437,1755403838604,-300.0,0.00020253,2]
[379767438,1755403838614,-300.0,0.00020253,2]
[379767439,1755403838623,-1200.0,0.00020253,2]
[379767440,1755403838632,-14922.93202202,0.00020254,2]
[379767441,1755403838641,-17602.58033032,0.00020285,2]
[379767442,1755403838652,-1237.35023039,0.00020285,2]
[379767443,1755403838661,-480.0,0.00020285,2]
[379767444,1755403838670,-480.54475342,0.00020285,2]
[379767445,1755403838680,-480.0,0.00020285,2]
[379767446,1755403838689,-480.0,0.00020285,2]
[379767447,1755403838699,-480.0,0.00020285,2]
[379767448,1755403838706,-521.85,0.00020285,2]
[379767449,1755403838715,-291.93663666,0.00020285,2]
[379767450,1755403838724,-500.0,0.00020285,2]
[379767451,1755403838733,-766.56355212,0.00020286,2]
[379767452,1755403838744,-237.69644788,0.00020286,2]
[379767453,1755403838753,-1333.72,0.00020286,2]
[379767454,1755403838763,-340.4,0.00020286,2]
[379767455,1755403838772,-480.0,0.00020286,2]
[379767457,1755403838782,-662.93,0.00020286,2]
[379767459,1755403838791,-1278.12,0.00020286,2]
[379767461,1755403838800,-555.06892147,0.00020286,2]
[379767463,1755403838809,-480.0,0.00020286,2]
[379767465,1755403838819,-490.66770042,0.00020286,2]
[379767467,1755403838829,-740.64,0.00020286,2]
[379767469,1755403838838,-480.0,0.00020286,2]
[379767471,1755403838848,-480.0,0.00020286,2]
[379767473,1755403838857,-480.0,0.00020286,2]
[379767475,1755403838866,-480.0,0.00020286,2]
[379767477,1755403838876,-480.0,0.00020286,2]
[379767479,1755403838885,-480.0,0.00020286,2]
[379767481,1755403838894,-1791.61,0.00020286,2]
[379767483,1755403838904,-480.0,0.00020286,2]
[379767485,1755403838912,-480.0,0.00020287,2]
[379767487,1755403838920,-440.0,0.00020287,2]
[379767489,1755403838929,-480.0,0.00020287,2]
[379767491,1755403838938,-480.0,0.00020287,2]
[379767493,1755403838947,-500.0,0.00020287,2]
[379767495,1755403838956,-480.0,0.00020287,2]
[379767496,1755403838966,-478.40519851,0.00020287,2]
[379767498,1755403838975,-521.49,0.00020287,2]
[379767500,1755403838985,-480.0,0.00020287,2]
[379767502,1755403838994,-510.0,0.00020287,2]
[379767504,1755403839007,-480.0,0.00020287,2]
[379767506,1755403839016,-485.55692774,0.00020287,2]
[379767508,1755403839026,-950.85,0.00020287,2]
[379767510,1755403839035,-285.11763637,0.00020287,2]
[379767512,1755403839046,-480.0,0.00020287,2]
[379767514,1755403839055,-362.46790886,0.00020287,2]
[379767516,1755403839064,-480.0,0.00020287,2]
[379767518,1755403839074,-488.64285232,0.00020287,2]
[379767520,1755403839083,-480.0,0.00020287,2]
[379767522,1755403839093,-515.62,0.00020287,2]
[379767524,1755403839103,-1188.82,0.00020287,2]
[379767526,1755403839113,-350.62786174,0.00020287,2]
[379767528,1755403839122,-480.0,0.00020287,2]
[379767530,1755403839131,-480.0,0.00020287,2]
[379767532,1755403839141,-480.0,0.00020287,2]
[379767534,1755403839150,-491.7075243,0.00020287,2]
[379767536,1755403839159,-480.0,0.00020287,2]
[379767538,1755403839168,-480.0,0.00020287,2]
[379767540,1755403839178,-594.33643387,0.00020287,2]
[379767542,1755403839189,-508.3856485,0.00020287,2]
[379767544,1755403839199,-480.0,0.00020287,2]
[379767546,1755403839208,-480.0,0.00020287,2]
[379767548,1755403839217,-481.75976154,0.00020287,2]
[379767550,1755403839227,-500.0,0.00020287,2]
[379767552,1755403839236,-480.0,0.00020287,2]
[379767554,1755403839245,-480.0,0.00020287,2]
[379767556,1755403839254,-494.78239197,0.00020287,2]
[379767558,1755403839264,-480.0,0.00020287,2]
[379767560,1755403839273,-480.0,0.00020287,2]
[379767562,1755403839283,-538.61,0.00020287,2]
[379767564,1755403839292,-480.0,0.00020287,2]
[379767566,1755403839301,-596.21,0.00020287,2]
[379767568,1755403839310,-480.0,0.00020287,2]
[379767570,1755403839320,-607.9,0.00020287,2]
[379767572,1755403839329,-480.0,0.00020288,2]
[379767574,1755403839338,-481.24843675,0.00020288,2]
[379767576,1755403839347,-500.0,0.00020288,2]
[379767578,1755403839356,-480.0,0.00020288,2]
[379767580,1755403839366,-507.3,0.00020288,2]
[379767582,1755403839376,-3790.22,0.00020288,2]
[379767584,1755403839393,-480.0,0.00020288,2]
[379767586,1755403839403,-480.0,0.00020288,2]
[379767588,1755403839413,-480.0,0.00020288,2]
[379767590,1755403839423,-785.96,0.00020288,2]
[379767592,1755403839433,-480.0,0.00020288,2]
[379767593,1755403839442,-291.7341363,0.00020288,2]
[379767595,1755403839451,-553.18,0.00020288,2]
[379767597,1755403839460,-480.0,0.00020288,2]
[379767599,1755403839470,-507.32,0.00020288,2]
[379767601,1755403839480,-480.0,0.00020289,2]
[379767603,1755403839489,-480.0,0.00020289,2]
[379767605,1755403839498,-480.0,0.00020289,2]
[379767607,1755403839507,-483.9025049,0.00020289,2]
[379767609,1755403839517,-489.62983094,0.00020289,2]
[379767611,1755403839526,-480.0,0.00020289,2]
[379767613,1755403839535,-552.88,0.00020289,2]
[379767615,1755403839548,-480.0,0.00020289,2]
[379767617,1755403839557,-480.0,0.00020289,2]
[379767619,1755403839566,-480.0,0.00020289,2]
[379767622,1755403839576,-480.0,0.00020289,2]
[379767623,1755403839585,-480.0,0.00020289,2]
[379767625,1755403839595,-480.0,0.00020289,2]
[379767627,1755403839604,-332.15,0.00020289,2]
[379767630,1755403839615,-480.0,0.00020289,2]
[379767632,1755403839624,-424.10192695,0.00020289,2]
[379767634,1755403839633,-484.9731701,0.00020289,2]
[379767636,1755403839643,-480.0,0.00020289,2]
[379767638,1755403839652,-480.0,0.00020289,2]
[379767640,1755403839661,-480.0,0.00020289,2]
[379767642,1755403839671,-480.0,0.00020289,2]
[379767644,1755403839680,-480.0,0.00020289,2]
[379767646,1755403839689,-480.0,0.00020289,2]
[379767648,1755403839698,-480.0,0.00020289,2]
[379767649,1755403839706,-480.0,0.00020289,2]
[379767651,1755403839715,-480.0,0.00020289,2]
[379767654,1755403839725,-480.0,0.00020289,2]
[379767657,1755403839734,-480.0,0.00020289,2]
[379767660,1755403839743,-480.0,0.00020289,2]
[379767662,1755403839753,-480.0,0.00020289,2]
[379767664,1755403839762,-480.0,0.00020289,2]
[379767665,1755403839772,-480.0,0.00020289,2]
[379767668,1755403839781,-480.0,0.00020289,2]
[379767670,1755403839791,-480.0,0.00020289,2]
[379767671,1755403839800,-480.0,0.00020289,2]
[379767673,1755403839810,-480.0,0.0002029,2]
[379767675,1755403839819,-482.38955534,0.0002029,2]
[379767677,1755403839829,-480.0,0.0002029,2]
[379767680,1755403839838,-480.0,0.0002029,2]
[379767681,1755403839847,-480.0,0.0002029,2]
[379767683,1755403839856,-480.0,0.0002029,2]
[379767685,1755403839865,-629.46,0.0002029,2]
[379767687,1755403839874,-480.0,0.0002029,2]
[379767689,1755403839883,-480.0,0.0002029,2]
[379767691,1755403839893,-480.0,0.0002029,2]
[379767693,1755403839902,-463.79630478,0.0002029,2]
[379767696,1755403839911,-440.0,0.0002029,2]
[379767698,1755403839920,-480.0,0.0002029,2]
[379767700,1755403839929,-482.78742704,0.0002029,2]
[379767702,1755403839940,-461.36177625,0.0002029,2]
[379767704,1755403839949,-480.0,0.0002029,2]
[379767706,1755403839958,-480.0,0.0002029,2]
[379767708,1755403839968,-480.0,0.0002029,2]
[379767710,1755403839978,-480.0,0.0002029,2]
[379767712,1755403839987,-480.0,0.0002029,2]
[379767714,1755403839996,-480.0,0.0002029,2]
[379767716,1755403840006,-498.44,0.0002029,2]
[379767718,1755403840015,-482.03528139,0.0002029,2]
[379767720,1755403840025,-480.0,0.0002029,2]
[379767722,1755403840034,-487.86,0.0002029,2]
[379767724,1755403840044,-512.48,0.0002029,2]
[379767726,1755403840053,-462.56613767,0.0002029,2]
[379767728,1755403840063,-480.0,0.0002029,2]
[379767730,1755403840074,-480.0,0.0002029,2]
[379767732,1755403840083,-434.1953514,0.0002029,2]
[379767734,1755403840092,-480.0,0.0002029,2]
[379767736,1755403840101,-480.0,0.0002029,2]
[379767738,1755403840110,-481.85146587,0.0002029,2]
[379767740,1755403840119,-480.0,0.0002029,2]
[379767742,1755403840129,-480.0,0.0002029,2]
[379767744,1755403840138,-480.0,0.0002029,2]
[379767746,1755403840147,-480.0,0.0002029,2]
[379767748,1755403840157,-480.0,0.0002029,2]
[379767750,1755403840167,-480.0,0.0002029,2]
[379767752,1755403840176,-480.0,0.0002029,2]
[379767754,1755403840185,-257.43573212,0.0002029,2]
[379767756,1755403840194,-480.0,0.0002029,2]
[379767758,1755403840203,-309.08863514,0.0002029,2]
[379767760,1755403840212,-480.0,0.0002029,2]
[379767762,1755403840223,-625.35305546,0.0002029,2]
[379767764,1755403840232,-480.0,0.0002029,2]
[379767766,1755403840241,-480.0,0.0002029,2]
[379767768,1755403840250,-480.0,0.0002029,2]
[379767770,1755403840259,-480.0,0.0002029,2]
[379767772,1755403840269,-480.0,0.0002029,2]
[379767774,1755403840278,-506.36170116,0.0002029,2]
[379767776,1755403840287,-480.0,0.0002029,2]
[379767778,1755403840295,-4233.07,0.00020291,2]
[379767780,1755403840305,-490.67,0.00020291,2]
[379767782,1755403840314,-2212.1,0.00020291,2]
[379767784,1755403840323,-17842.522448,0.00020321,2]
[379767786,1755403840333,-151.0,0.00020321,2]
[379767788,1755403840342,-151.0,0.00020321,2]
[379767790,1755403840351,-151.0,0.00020321,2]
[379767792,1755403840361,-151.0,0.00020321,2]
[379767794,1755403840371,-151.0,0.00020321,2]
[379767796,1755403840380,-151.0,0.00020321,2]
[379767798,1755403840389,-163.68146274,0.00020321,2]
[379767800,1755403840398,-328.13261208,0.00020321,2]
[379767802,1755403840408,-180.63,0.00020343,3]
[379767804,1755403840417,-541.91,0.00020343,3]
[379767806,1755403840426,-545.97061682,0.0002035,2]
[379767808,1755403840435,-2181.6985848,0.0002035,2]
[379767810,1755403840445,-480.0,0.00020353,2]
[379767812,1755403840454,-494.25,0.00020353,2]
[379767814,1755403840463,-616.29,0.00020353,2]
[379767816,1755403840473,-475.50371827,0.00020353,2]
[379767818,1755403840482,-480.0,0.00020353,2]
[379767820,1755403840493,-480.0,0.00020353,2]
[379767822,1755403840502,-480.0,0.00020353,2]
[379767824,1755403840511,-480.0,0.00020353,2]
[379767826,1755403840520,-433.62589241,0.00020353,2]
[379767828,1755403840530,-480.0,0.00020353,2]
[379767830,1755403840539,-480.0,0.00020353,2]
[379767832,1755403840550,-480.0,0.00020353,2]
[379767834,1755403840560,-480.0,0.00020353,2]
[379767836,1755403840568,-872.65,0.00020354,2]
[379767838,1755403840577,-480.0,0.00020354,2]
[379767840,1755403840587,-480.0,0.00020355,2]
[379767842,1755403840597,-440.0,0.00020355,2]
[379767845,1755403840607,-480.0,0.00020355,2]
[379767847,1755403840616,-480.0,0.00020355,2]
[379767848,1755403840626,-362.41043099,0.00020355,2]
[379767850,1755403840635,-480.0,0.00020355,2]
[379767852,1755403840644,-480.0,0.00020355,2]
[379767854,1755403840653,-480.0,0.00020355,2]
[379767856,1755403840662,-480.80712027,0.00020355,2]
[379767858,1755403840671,-480.0,0.00020355,2]
[379767860,1755403840681,-480.0,0.00020355,2]
[379767862,1755403840690,-480.0,0.00020355,2]
[379767864,1755403840700,-480.0,0.00020355,2]
[379767866,1755403840710,-480.0,0.00020355,2]
[379767869,1755403840721,-480.0,0.00020355,2]
[379767871,1755403840731,-832.87,0.00020355,2]
[379767873,1755403840741,-480.0,0.00020355,2]
[379767875,1755403840750,-151.0,0.000205,2]
[379767877,1755403840760,-10889.0,0.000205,2]
[379767879,1755403840769,-480.0,0.00020559,2]
[379767881,1755403840779,-480.0,0.00020559,2]
[379767882,1755403840788,-480.0,0.00020559,2]
[379767884,1755403840797,-194.70048,0.00020559,2]
[379767886,1755403840806,-1004.26,0.0002056,2]
[379767888,1755403840815,-1333.72,0.0002056,2]
[379767891,1755403840825,-480.0,0.0002056,2]
[379767893,1755403840834,-662.93,0.0002056,2]
[379767895,1755403840843,-1278.12,0.0002056,2]
[379767897,1755403840852,-740.64,0.0002056,2]
[379767898,1755403840861,-355.4,0.0002056,2]
[379767900,1755403840872,-480.0,0.0002056,2]
[379767902,1755403840881,-480.0,0.0002056,2]
[379767905,1755403840891,-1791.61,0.0002056,2]
[379767907,1755403840901,-480.0,0.0002056,2]
[379767909,1755403840910,-480.0,0.00020561,2]
[379767911,1755403840919,-510.0,0.00020561,2]
[379767912,1755403840928,-480.0,0.00020561,2]
[379767914,1755403840937,-950.85,0.00020561,2]
[379767917,1755403840947,-480.0,0.00020561,2]
[379767919,1755403840956,-480.0,0.00020561,2]
[379767921,1755403840965,-480.0,0.00020561,2]
[379767923,1755403840975,-1188.82,0.00020561,2]
[379767925,1755403840984,-490.23705647,0.00020561,2]
[379767927,1755403840993,-306.28,0.00020561,2]
[379767929,1755403841007,-480.0,0.00020561,2]
[379767931,1755403841017,-480.0,0.00020561,2]
[379767933,1755403841026,-480.0,0.00020561,2]
[379767935,1755403841035,-488.81640553,0.00020561,2]
[379767937,1755403841045,-480.0,0.00020561,2]
[379767939,1755403841055,-480.0,0.00020561,2]
[379767941,1755403841064,-596.21,0.00020561,2]
[379767943,1755403841073,-480.0,0.00020562,2]
[379767945,1755403841083,-3790.22,0.00020562,2]
[379767947,1755403841092,-480.0,0.00020562,2]
[379767948,1755403841102,-480.0,0.00020562,2]
[379767950,1755403841111,-785.96,0.00020562,2]
[379767953,1755403841121,-480.0,0.00020562,2]
[379767954,1755403841130,-553.18,0.00020562,2]
[379767956,1755403841139,-480.0,0.00020562,2]
[379767958,1755403841148,-480.0,0.00020563,2]
[379767960,1755403841157,-480.0,0.00020563,2]
[379767962,1755403841166,-480.0,0.00020563,2]
[379767964,1755403841176,-584.94577094,0.00020563,2]
[379767966,1755403841185,-480.0,0.00020563,2]
[379767968,1755403841195,-480.0,0.00020563,2]
[379767970,1755403841204,-480.0,0.00020563,2]
[379767972,1755403841213,-277.7,0.00020563,2]
[379767974,1755403841223,-484.26818298,0.00020563,2]
[379767976,1755403841232,-480.0,0.00020563,2]
[379767978,1755403841242,-480.0,0.00020563,2]
[379767980,1755403841253,-480.0,0.00020563,2]
[379767982,1755403841272,-480.0,0.00020563,2]
[379767984,1755403841282,-480.0,0.00020563,2]
[379767987,1755403841292,-480.0,0.00020563,2]
[379767988,1755403841301,-480.0,0.00020563,2]
[379767990,1755403841310,-485.21774408,0.00020563,2]
[379767992,1755403841319,-480.0,0.00020563,2]
[379767994,1755403841328,-480.0,0.00020563,2]
[379767996,1755403841337,-480.0,0.00020563,2]
[379767999,1755403841347,-480.0,0.00020564,2]
[379768001,1755403841356,-504.35689093,0.00020564,2]
[379768003,1755403841366,-559.6407489,0.00020564,2]
[379768005,1755403841375,-483.79181448,0.00020564,2]
[379768007,1755403841384,-480.0,0.00020564,2]
[379768009,1755403841393,-483.71272806,0.00020564,2]
[379768011,1755403841403,-483.58945004,0.00020564,2]
[379768013,1755403841412,-157.96,0.00020564,2]
[379768015,1755403841421,-480.0,0.00020564,2]
[379768017,1755403841431,-480.0,0.00020564,2]
[379768019,1755403841441,-445.06523156,0.00020564,2]
[379768021,1755403841450,-486.85643991,0.00020564,2]
[379768023,1755403841460,-329.06435099,0.00020564,2]
[379768025,1755403841470,-480.0,0.00020564,2]
[379768027,1755403841479,-480.0,0.00020564,2]
[379768029,1755403841489,-4233.07,0.00020565,2]
[379768031,1755403841498,-490.67,0.00020565,2]
[379768032,1755403841508,-2212.1,0.00020565,2]
[379768034,1755403841517,-215.71995163,0.00020588,2]
[379768036,1755403841526,-232.1512529,0.00020588,2]
[379768038,1755403841535,-528.48506731,0.00020588,2]
[379768054,1755403841545,-160.0,0.00020588,2]
[379768057,1755403841693,-843.71309931,0.00020588,2]
[379768059,1755403841703,-12682.46447135,0.00020588,2]
[379768061,1755403841713,-160.0,0.00020588,2]
[379768063,1755403841722,-462.21132165,0.00020588,2]
[379768065,1755403841731,-293.7439445,0.000206,2]
[379768067,1755403841740,-293.7439445,0.000206,2]
[379768069,1755403841749,-293.7439445,0.000206,2]
[379768071,1755403841758,-293.243015,0.000206,2]
[379768073,1755403841767,-319.8,0.000206,2]
[379768075,1755403841777,-494.25,0.00020627,2]
[379768077,1755403841786,-168.15,0.00020627,2]
[379768079,1755403841795,-480.0,0.00020627,2]
[379768081,1755403841804,-480.0,0.00020627,2]
[379768083,1755403841813,-480.0,0.00020627,2]
[379768084,1755403841823,-480.0,0.00020627,2]
[379768087,1755403841832,-872.65,0.00020628,2]
[379768088,1755403841842,-296.5,0.00020629,2]
[379768090,1755403841851,-480.0,0.00020629,2]
[379768092,1755403841860,-240.80143174,0.00020629,2]
[379768094,1755403841870,-480.0,0.00020629,2]
[379768096,1755403841879,-480.0,0.00020629,2]
[379768098,1755403841888,-480.0,0.00020629,2]
[379768100,1755403841897,-480.0,0.00020629,2]
[379768102,1755403841907,-832.87,0.00020629,2]
[379768104,1755403841916,-480.0,0.00020629,2]
[379768106,1755403841925,-151.0,0.00020648,2]
[379768108,1755403841934,-200.0,0.00020657,20]
[379768111,1755403841944,-200.0,0.00020657,20]
[379768113,1755403841953,-200.0,0.00020657,20]
[379768114,1755403841962,-200.0,0.00020657,20]
[379768116,1755403841971,-200.0,0.00020657,20]
[379768118,1755403841980,-200.0,0.00020657,20]
[379768120,1755403841990,-200.0,0.00020657,20]
[379768122,1755403842000,-200.0,0.00020657,20]
[379768124,1755403842009,-200.0,0.00020657,20]
[379768126,1755403842019,-200.0,0.00020657,20]
[379768128,1755403842028,-600.0,0.00020694,20]
[379768130,1755403842037,-153.137692,0.00020698,20]
[379768133,1755403842047,-293.7439445,0.000207,2]
[379768134,1755403842056,-201.3819035,0.00020734,2]
[379768137,1755403842066,-198.0,0.00020734,2]
[379768139,1755403842076,-151.0,0.00020734,2]
[379768140,1755403842085,-153.72009186,0.00020734,2]
[379768142,1755403842095,-276.95582287,0.00020734,2]
[379768144,1755403842104,-1103.0,0.00020734,2]
[379768146,1755403842113,-1057.0,0.00020734,2]
[379768148,1755403842123,-151.0,0.00020734,2]
[379768150,1755403842133,-201.5752663,0.00020734,2]
[379768152,1755403842142,-155.97720109,0.00020734,2]
[379768154,1755403842151,-151.0,0.00020734,2]
[379768156,1755403842161,-151.0,0.00020734,2]
[379768158,1755403842170,-151.0,0.00020734,2]
[379768160,1755403842180,-151.0,0.00020734,2]
[379768162,1755403842190,-11672.39353374,0.00020739,2]
[379768164,1755403842199,-319.8,0.00020745,2]
[379768166,1755403842208,-157.033751,0.00020776,5]
[379768168,1755403842217,-597.5631725,0.00020795,2]
[379768170,1755403842227,-150.73190896,0.00020798,20]
[379768172,1755403842236,-301.63,0.00020833,2]